{"text_format":"3","workbook":"xlsx","n_sheets":8,"sheets":["4 класс","5 класс","6 класс","7 класс","8 класс","9 класс","10 класс","11 класс"],"not_rendered":{"external_links":6,"defined_names":1},"read":"whole","date_system":"1900"}

{"sheet":"4 класс","index":0,"n_rows":34,"n_cols":10,"rows_kept":34}
["№","Фамилия","Имя","Отчество","Класс обучения","Класс участия","Балл","Максимальный балл","Статус","ФИО учителя"]
[1,{"$f":"'[1]Протокол ШЭ ВОШ по предмету'!B2","v":"Менли-Асанова"},{"$f":"'[1]Протокол ШЭ ВОШ по предмету'!C2","v":"Резеда"},{"$f":"'[1]Протокол ШЭ ВОШ по предмету'!D2","v":"Маратовна"},{"$f":"'[1]Протокол ШЭ ВОШ по предмету'!H2","v":4},{"$f":"'[1]Протокол ШЭ ВОШ по предмету'!I2","v":4},{"$f":"'[1]Протокол ШЭ ВОШ по предмету'!J2","v":51},{"$f":"'[1]Протокол ШЭ ВОШ по предмету'!K2","v":53},{"$f":"'[1]Протокол ШЭ ВОШ по предмету'!L2","v":"Победитель"},{"$f":"'[1]Протокол ШЭ ВОШ по предмету'!N2","v":"Идиятова Рамзия Муллахметовна"}]
[2,{"$f":"'[1]Протокол ШЭ ВОШ по предмету'!B3","v":"Назипов "},{"$f":"'[1]Протокол ШЭ ВОШ по предмету'!C3","v":"Дамир"},{"$f":"'[1]Протокол ШЭ ВОШ по предмету'!D3","v":"Маратович"},{"$f":"'[1]Протокол ШЭ ВОШ по предмету'!H3","v":4},{"$f":"'[1]Протокол ШЭ ВОШ по предмету'!I3","v":4},{"$f":"'[1]Протокол ШЭ ВОШ по предмету'!J3","v":47},{"$f":"'[1]Протокол ШЭ ВОШ по предмету'!K3","v":53},{"$f":"'[1]Протокол ШЭ ВОШ по предмету'!L3","v":"Призер "},{"$f":"'[1]Протокол ШЭ ВОШ по предмету'!N3","v":"Идиятова Рамзия Муллахметовна"}]
[3,{"$f":"'[1]Протокол ШЭ ВОШ по предмету'!B4","v":"Шамсивалеева "},{"$f":"'[1]Протокол ШЭ ВОШ по предмету'!C4","v":"Ясмина"},{"$f":"'[1]Протокол ШЭ ВОШ по предмету'!D4","v":"Ильясовна"},{"$f":"'[1]Протокол ШЭ ВОШ по предмету'!H4","v":4},{"$f":"'[1]Протокол ШЭ ВОШ по предмету'!I4","v":4},{"$f":"'[1]Протокол ШЭ ВОШ по предмету'!J4","v":34},{"$f":"'[1]Протокол ШЭ ВОШ по предмету'!K4","v":53},{"$f":"'[1]Протокол ШЭ ВОШ по предмету'!L4","v":"Призер "},{"$f":"'[1]Протокол ШЭ ВОШ по предмету'!N4","v":"Идиятова Рамзия Муллахметовна"}]
[4,{"$f":"'[1]Протокол ШЭ ВОШ по предмету'!B5","v":"Ахмадуллина"},{"$f":"'[1]Протокол ШЭ ВОШ по предмету'!C5","v":"Камиля"},{"$f":"'[1]Протокол ШЭ ВОШ по предмету'!D5","v":"Альбертовна"},{"$f":"'[1]Протокол ШЭ ВОШ по предмету'!H5","v":4},{"$f":"'[1]Протокол ШЭ ВОШ по предмету'!I5","v":4},{"$f":"'[1]Протокол ШЭ ВОШ по предмету'!J5","v":34},{"$f":"'[1]Протокол ШЭ ВОШ по предмету'!K5","v":53},{"$f":"'[1]Протокол ШЭ ВОШ по предмету'!L5","v":"Призер "},{"$f":"'[1]Протокол ШЭ ВОШ по предмету'!N5","v":"Идиятова Рамзия Муллахметовна"}]
[5,{"$f":"'[1]Протокол ШЭ ВОШ по предмету'!B6","v":"Шамшуаров "},{"$f":"'[1]Протокол ШЭ ВОШ по предмету'!C6","v":"Адель"},{"$f":"'[1]Протокол ШЭ ВОШ по предмету'!D6","v":"Айнурович"},{"$f":"'[1]Протокол ШЭ ВОШ по предмету'!H6","v":4},{"$f":"'[1]Протокол ШЭ ВОШ по предмету'!I6","v":4},{"$f":"'[1]Протокол ШЭ ВОШ по предмету'!J6","v":28},{"$f":"'[1]Протокол ШЭ ВОШ по предмету'!K6","v":53},{"$f":"'[1]Протокол ШЭ ВОШ по предмету'!L6","v":"Участник"},{"$f":"'[1]Протокол ШЭ ВОШ по предмету'!N6","v":"Идиятова Рамзия Муллахметовна"}]
[6,{"$f":"'[1]Протокол ШЭ ВОШ по предмету'!B7","v":"Вильданова"},{"$f":"'[1]Протокол ШЭ ВОШ по предмету'!C7","v":"Эльвина"},{"$f":"'[1]Протокол ШЭ ВОШ по предмету'!D7","v":"Раисовна"},{"$f":"'[1]Протокол ШЭ ВОШ по предмету'!H7","v":4},{"$f":"'[1]Протокол ШЭ ВОШ по предмету'!I7","v":4},{"$f":"'[1]Протокол ШЭ ВОШ по предмету'!J7","v":26.5},{"$f":"'[1]Протокол ШЭ ВОШ по предмету'!K7","v":53},{"$f":"'[1]Протокол ШЭ ВОШ по предмету'!L7","v":"Участник"},{"$f":"'[1]Протокол ШЭ ВОШ по предмету'!N7","v":"Идиятова Рамзия Муллахметовна"}]
[7,{"$f":"'[1]Протокол ШЭ ВОШ по предмету'!B8","v":"Вильданова"},{"$f":"'[1]Протокол ШЭ ВОШ по предмету'!C8","v":"Элина"},{"$f":"'[1]Протокол ШЭ ВОШ по предмету'!D8","v":"Раисовна"},{"$f":"'[1]Протокол ШЭ ВОШ по предмету'!H8","v":4},{"$f":"'[1]Протокол ШЭ ВОШ по предмету'!I8","v":4},{"$f":"'[1]Протокол ШЭ ВОШ по предмету'!J8","v":25},{"$f":"'[1]Протокол ШЭ ВОШ по предмету'!K8","v":3},{"$f":"'[1]Протокол ШЭ ВОШ по предмету'!L8","v":"Участник"},{"$f":"'[1]Протокол ШЭ ВОШ по предмету'!N8","v":"Идиятова Рамзия Муллахметовна"}]
[8,{"$f":"'[1]Протокол ШЭ ВОШ по предмету'!B9","v":"Галлямова"},{"$f":"'[1]Протокол ШЭ ВОШ по предмету'!C9","v":"Лиана"},{"$f":"'[1]Протокол ШЭ ВОШ по предмету'!D9","v":"Рауфовна"},{"$f":"'[1]Протокол ШЭ ВОШ по предмету'!H9","v":4},{"$f":"'[1]Протокол ШЭ ВОШ по предмету'!I9","v":4},{"$f":"'[1]Протокол ШЭ ВОШ по предмету'!J9","v":25},{"$f":"'[1]Протокол ШЭ ВОШ по предмету'!K9","v":53},{"$f":"'[1]Протокол ШЭ ВОШ по предмету'!L9","v":"Участник"},{"$f":"'[1]Протокол ШЭ ВОШ по предмету'!N9","v":"Идиятова Рамзия Муллахметовна"}]
[9,{"$f":"'[1]Протокол ШЭ ВОШ по предмету'!B10","v":"Константинова"},{"$f":"'[1]Протокол ШЭ ВОШ по предмету'!C10","v":"Эвелина"},{"$f":"'[1]Протокол ШЭ ВОШ по предмету'!D10","v":"Евгеньевна"},{"$f":"'[1]Протокол ШЭ ВОШ по предмету'!H10","v":4},{"$f":"'[1]Протокол ШЭ ВОШ по предмету'!I10","v":4},{"$f":"'[1]Протокол ШЭ ВОШ по предмету'!J10","v":24},{"$f":"'[1]Протокол ШЭ ВОШ по предмету'!K10","v":53},{"$f":"'[1]Протокол ШЭ ВОШ по предмету'!L10","v":"Участник"},{"$f":"'[1]Протокол ШЭ ВОШ по предмету'!N10","v":"Идиятова Рамзия Муллахметовна"}]
[10,{"$f":"'[1]Протокол ШЭ ВОШ по предмету'!B11","v":"Кадырова"},{"$f":"'[1]Протокол ШЭ ВОШ по предмету'!C11","v":"Аделя"},{"$f":"'[1]Протокол ШЭ ВОШ по предмету'!D11","v":"Равилевна"},{"$f":"'[1]Протокол ШЭ ВОШ по предмету'!H11","v":4},{"$f":"'[1]Протокол ШЭ ВОШ по предмету'!I11","v":4},{"$f":"'[1]Протокол ШЭ ВОШ по предмету'!J11","v":22},{"$f":"'[1]Протокол ШЭ ВОШ по предмету'!K11","v":53},{"$f":"'[1]Протокол ШЭ ВОШ по предмету'!L11","v":"Участник"},{"$f":"'[1]Протокол ШЭ ВОШ по предмету'!N11","v":"Идиятова Рамзия Муллахметовна"}]
[11,{"$f":"'[1]Протокол ШЭ ВОШ по предмету'!B12","v":"Сафина"},{"$f":"'[1]Протокол ШЭ ВОШ по предмету'!C12","v":"Лейла"},{"$f":"'[1]Протокол ШЭ ВОШ по предмету'!D12","v":"Рафаилевна"},{"$f":"'[1]Протокол ШЭ ВОШ по предмету'!H12","v":4},{"$f":"'[1]Протокол ШЭ ВОШ по предмету'!I12","v":4},{"$f":"'[1]Протокол ШЭ ВОШ по предмету'!J12","v":21},{"$f":"'[1]Протокол ШЭ ВОШ по предмету'!K12","v":53},{"$f":"'[1]Протокол ШЭ ВОШ по предмету'!L12","v":"Участник"},{"$f":"'[1]Протокол ШЭ ВОШ по предмету'!N12","v":"Идиятова Рамзия Муллахметовна"}]
[12,{"$f":"'[1]Протокол ШЭ ВОШ по предмету'!B13","v":"Шайхатдарова"},{"$f":"'[1]Протокол ШЭ ВОШ по предмету'!C13","v":"Амира"},{"$f":"'[1]Протокол ШЭ ВОШ по предмету'!D13","v":"Ильдусовна"},{"$f":"'[1]Протокол ШЭ ВОШ по предмету'!H13","v":4},{"$f":"'[1]Протокол ШЭ ВОШ по предмету'!I13","v":4},{"$f":"'[1]Протокол ШЭ ВОШ по предмету'!J13","v":21},{"$f":"'[1]Протокол ШЭ ВОШ по предмету'!K13","v":53},{"$f":"'[1]Протокол ШЭ ВОШ по предмету'!L13","v":"Участник"},{"$f":"'[1]Протокол ШЭ ВОШ по предмету'!N13","v":"Идиятова Рамзия Муллахметовна"}]
[13,{"$f":"'[1]Протокол ШЭ ВОШ по предмету'!B14","v":"Валишина"},{"$f":"'[1]Протокол ШЭ ВОШ по предмету'!C14","v":"Элина"},{"$f":"'[1]Протокол ШЭ ВОШ по предмету'!D14","v":"Айратовна"},{"$f":"'[1]Протокол ШЭ ВОШ по предмету'!H14","v":4},{"$f":"'[1]Протокол ШЭ ВОШ по предмету'!I14","v":4},{"$f":"'[1]Протокол ШЭ ВОШ по предмету'!J14","v":20.5},{"$f":"'[1]Протокол ШЭ ВОШ по предмету'!K14","v":53},{"$f":"'[1]Протокол ШЭ ВОШ по предмету'!L14","v":"Участник"},{"$f":"'[1]Протокол ШЭ ВОШ по предмету'!N14","v":"Идиятова Рамзия Муллахметовна"}]
[14,{"$f":"'[1]Протокол ШЭ ВОШ по предмету'!B15","v":"Нуриахметова"},{"$f":"'[1]Протокол ШЭ ВОШ по предмету'!C15","v":"Лилиана"},{"$f":"'[1]Протокол ШЭ ВОШ по предмету'!D15","v":"Раушановна"},{"$f":"'[1]Протокол ШЭ ВОШ по предмету'!H15","v":4},{"$f":"'[1]Протокол ШЭ ВОШ по предмету'!I15","v":4},{"$f":"'[1]Протокол ШЭ ВОШ по предмету'!J15","v":20},{"$f":"'[1]Протокол ШЭ ВОШ по предмету'!K15","v":53},{"$f":"'[1]Протокол ШЭ ВОШ по предмету'!L15","v":"Участник"},{"$f":"'[1]Протокол ШЭ ВОШ по предмету'!N15","v":"Идиятова Рамзия Муллахметовна"}]
[15,{"$f":"'[1]Протокол ШЭ ВОШ по предмету'!B16","v":"Сафин"},{"$f":"'[1]Протокол ШЭ ВОШ по предмету'!C16","v":"Радель"},{"$f":"'[1]Протокол ШЭ ВОШ по предмету'!D16","v":"Ринатович"},{"$f":"'[1]Протокол ШЭ ВОШ по предмету'!H16","v":4},{"$f":"'[1]Протокол ШЭ ВОШ по предмету'!I16","v":4},{"$f":"'[1]Протокол ШЭ ВОШ по предмету'!J16","v":20},{"$f":"'[1]Протокол ШЭ ВОШ по предмету'!K16","v":53},{"$f":"'[1]Протокол ШЭ ВОШ по предмету'!L16","v":"Участник"},{"$f":"'[1]Протокол ШЭ ВОШ по предмету'!N16","v":"Идиятова Рамзия Муллахметовна"}]
[16,{"$f":"'[1]Протокол ШЭ ВОШ по предмету'!B17","v":"Замалетдинова"},{"$f":"'[1]Протокол ШЭ ВОШ по предмету'!C17","v":"Самира"},{"$f":"'[1]Протокол ШЭ ВОШ по предмету'!D17","v":"Айратовна"},{"$f":"'[1]Протокол ШЭ ВОШ по предмету'!H17","v":4},{"$f":"'[1]Протокол ШЭ ВОШ по предмету'!I17","v":4},{"$f":"'[1]Протокол ШЭ ВОШ по предмету'!J17","v":19},{"$f":"'[1]Протокол ШЭ ВОШ по предмету'!K17","v":53},{"$f":"'[1]Протокол ШЭ ВОШ по предмету'!L17","v":"Участник"},{"$f":"'[1]Протокол ШЭ ВОШ по предмету'!N17","v":"Идиятова Рамзия Муллахметовна"}]
[17,{"$f":"'[1]Протокол ШЭ ВОШ по предмету'!B18","v":"Биктимирова"},{"$f":"'[1]Протокол ШЭ ВОШ по предмету'!C18","v":"Аделина"},{"$f":"'[1]Протокол ШЭ ВОШ по предмету'!D18","v":"Ильдусовна"},{"$f":"'[1]Протокол ШЭ ВОШ по предмету'!H18","v":4},{"$f":"'[1]Протокол ШЭ ВОШ по предмету'!I18","v":4},{"$f":"'[1]Протокол ШЭ ВОШ по предмету'!J18","v":17.5},{"$f":"'[1]Протокол ШЭ ВОШ по предмету'!K18","v":53},{"$f":"'[1]Протокол ШЭ ВОШ по предмету'!L18","v":"Участник"},{"$f":"'[1]Протокол ШЭ ВОШ по предмету'!N18","v":"Идиятова Рамзия Муллахметовна"}]
[18,{"$f":"'[1]Протокол ШЭ ВОШ по предмету'!B19","v":"Зиганшин "},{"$f":"'[1]Протокол ШЭ ВОШ по предмету'!C19","v":"Самат"},{"$f":"'[1]Протокол ШЭ ВОШ по предмету'!D19","v":"Фаилевич"},{"$f":"'[1]Протокол ШЭ ВОШ по предмету'!H19","v":4},{"$f":"'[1]Протокол ШЭ ВОШ по предмету'!I19","v":4},{"$f":"'[1]Протокол ШЭ ВОШ по предмету'!J19","v":15.5},{"$f":"'[1]Протокол ШЭ ВОШ по предмету'!K19","v":53},{"$f":"'[1]Протокол ШЭ ВОШ по предмету'!L19","v":"Участник"},{"$f":"'[1]Протокол ШЭ ВОШ по предмету'!N19","v":"Идиятова Рамзия Муллахметовна"}]
[19,{"$f":"'[1]Протокол ШЭ ВОШ по предмету'!B20","v":"Амирова"},{"$f":"'[1]Протокол ШЭ ВОШ по предмету'!C20","v":"Карина"},{"$f":"'[1]Протокол ШЭ ВОШ по предмету'!D20","v":"Артуровна"},{"$f":"'[1]Протокол ШЭ ВОШ по предмету'!H20","v":4},{"$f":"'[1]Протокол ШЭ ВОШ по предмету'!I20","v":4},{"$f":"'[1]Протокол ШЭ ВОШ по предмету'!J20","v":14},{"$f":"'[1]Протокол ШЭ ВОШ по предмету'!K20","v":53},{"$f":"'[1]Протокол ШЭ ВОШ по предмету'!L20","v":"Участник"},{"$f":"'[1]Протокол ШЭ ВОШ по предмету'!N20","v":"Идиятова Рамзия Муллахметовна"}]
[20,{"$f":"'[1]Протокол ШЭ ВОШ по предмету'!B21","v":"Ашурова"},{"$f":"'[1]Протокол ШЭ ВОШ по предмету'!C21","v":"Камилла"},{"$f":"'[1]Протокол ШЭ ВОШ по предмету'!D21","v":"Эльбековна"},{"$f":"'[1]Протокол ШЭ ВОШ по предмету'!H21","v":4},{"$f":"'[1]Протокол ШЭ ВОШ по предмету'!I21","v":4},{"$f":"'[1]Протокол ШЭ ВОШ по предмету'!J21","v":14},{"$f":"'[1]Протокол ШЭ ВОШ по предмету'!K21","v":53},{"$f":"'[1]Протокол ШЭ ВОШ по предмету'!L21","v":"Участник"},{"$f":"'[1]Протокол ШЭ ВОШ по предмету'!N21","v":"Идиятова Рамзия Муллахметовна"}]
[21,{"$f":"'[1]Протокол ШЭ ВОШ по предмету'!B22","v":"Березин"},{"$f":"'[1]Протокол ШЭ ВОШ по предмету'!C22","v":"Егор"},{"$f":"'[1]Протокол ШЭ ВОШ по предмету'!D22","v":"Романович"},{"$f":"'[1]Протокол ШЭ ВОШ по предмету'!H22","v":4},{"$f":"'[1]Протокол ШЭ ВОШ по предмету'!I22","v":4},{"$f":"'[1]Протокол ШЭ ВОШ по предмету'!J22","v":14},{"$f":"'[1]Протокол ШЭ ВОШ по предмету'!K22","v":53},{"$f":"'[1]Протокол ШЭ ВОШ по предмету'!L22","v":"Участник"},{"$f":"'[1]Протокол ШЭ ВОШ по предмету'!N22","v":"Идиятова Рамзия Муллахметовна"}]
[22,{"$f":"'[1]Протокол ШЭ ВОШ по предмету'!B23","v":"Идрисова"},{"$f":"'[1]Протокол ШЭ ВОШ по предмету'!C23","v":"Азалия"},{"$f":"'[1]Протокол ШЭ ВОШ по предмету'!D23","v":"Рамилевна"},{"$f":"'[1]Протокол ШЭ ВОШ по предмету'!H23","v":4},{"$f":"'[1]Протокол ШЭ ВОШ по предмету'!I23","v":4},{"$f":"'[1]Протокол ШЭ ВОШ по предмету'!J23","v":14},{"$f":"'[1]Протокол ШЭ ВОШ по предмету'!K23","v":53},{"$f":"'[1]Протокол ШЭ ВОШ по предмету'!L23","v":"Участник"},{"$f":"'[1]Протокол ШЭ ВОШ по предмету'!N23","v":"Идиятова Рамзия Муллахметовна"}]
[23,{"$f":"'[1]Протокол ШЭ ВОШ по предмету'!B24","v":"Шаймарданов"},{"$f":"'[1]Протокол ШЭ ВОШ по предмету'!C24","v":"Реваль"},{"$f":"'[1]Протокол ШЭ ВОШ по предмету'!D24","v":"Ренатович"},{"$f":"'[1]Протокол ШЭ ВОШ по предмету'!H24","v":4},{"$f":"'[1]Протокол ШЭ ВОШ по предмету'!I24","v":4},{"$f":"'[1]Протокол ШЭ ВОШ по предмету'!J24","v":14},{"$f":"'[1]Протокол ШЭ ВОШ по предмету'!K24","v":53},{"$f":"'[1]Протокол ШЭ ВОШ по предмету'!L24","v":"Участник"},{"$f":"'[1]Протокол ШЭ ВОШ по предмету'!N24","v":"Идиятова Рамзия Муллахметовна"}]
[24,{"$f":"'[1]Протокол ШЭ ВОШ по предмету'!B25","v":"Хамидуллин"},{"$f":"'[1]Протокол ШЭ ВОШ по предмету'!C25","v":"Ильфат"},{"$f":"'[1]Протокол ШЭ ВОШ по предмету'!D25","v":"Рамилевич"},{"$f":"'[1]Протокол ШЭ ВОШ по предмету'!H25","v":4},{"$f":"'[1]Протокол ШЭ ВОШ по предмету'!I25","v":4},{"$f":"'[1]Протокол ШЭ ВОШ по предмету'!J25","v":13.5},{"$f":"'[1]Протокол ШЭ ВОШ по предмету'!K25","v":53},{"$f":"'[1]Протокол ШЭ ВОШ по предмету'!L25","v":"Участник"},{"$f":"'[1]Протокол ШЭ ВОШ по предмету'!N25","v":"Идиятова Рамзия Муллахметовна"}]
[25,{"$f":"'[1]Протокол ШЭ ВОШ по предмету'!B26","v":"Давлетшин"},{"$f":"'[1]Протокол ШЭ ВОШ по предмету'!C26","v":"Аскар"},{"$f":"'[1]Протокол ШЭ ВОШ по предмету'!D26","v":"Аликович"},{"$f":"'[1]Протокол ШЭ ВОШ по предмету'!H26","v":4},{"$f":"'[1]Протокол ШЭ ВОШ по предмету'!I26","v":4},{"$f":"'[1]Протокол ШЭ ВОШ по предмету'!J26","v":12},{"$f":"'[1]Протокол ШЭ ВОШ по предмету'!K26","v":53},{"$f":"'[1]Протокол ШЭ ВОШ по предмету'!L26","v":"Участник"},{"$f":"'[1]Протокол ШЭ ВОШ по предмету'!N26","v":"Идиятова Рамзия Муллахметовна"}]
[26,{"$f":"'[1]Протокол ШЭ ВОШ по предмету'!B27","v":"Ахметзянова"},{"$f":"'[1]Протокол ШЭ ВОШ по предмету'!C27","v":"Амалия"},{"$f":"'[1]Протокол ШЭ ВОШ по предмету'!D27","v":"Маратовна"},{"$f":"'[1]Протокол ШЭ ВОШ по предмету'!H27","v":4},{"$f":"'[1]Протокол ШЭ ВОШ по предмету'!I27","v":4},{"$f":"'[1]Протокол ШЭ ВОШ по предмету'!J27","v":11},{"$f":"'[1]Протокол ШЭ ВОШ по предмету'!K27","v":53},{"$f":"'[1]Протокол ШЭ ВОШ по предмету'!L27","v":"Участник"},{"$f":"'[1]Протокол ШЭ ВОШ по предмету'!N27","v":"Идиятова Рамзия Муллахметовна"}]
[27,{"$f":"'[1]Протокол ШЭ ВОШ по предмету'!B28","v":"Хамидуллина"},{"$f":"'[1]Протокол ШЭ ВОШ по предмету'!C28","v":"Миляуша"},{"$f":"'[1]Протокол ШЭ ВОШ по предмету'!D28","v":"Равилевна"},{"$f":"'[1]Протокол ШЭ ВОШ по предмету'!H28","v":4},{"$f":"'[1]Протокол ШЭ ВОШ по предмету'!I28","v":4},{"$f":"'[1]Протокол ШЭ ВОШ по предмету'!J28","v":11},{"$f":"'[1]Протокол ШЭ ВОШ по предмету'!K28","v":53},{"$f":"'[1]Протокол ШЭ ВОШ по предмету'!L28","v":"Участник"},{"$f":"'[1]Протокол ШЭ ВОШ по предмету'!N28","v":"Идиятова Рамзия Муллахметовна"}]
[28,{"$f":"'[1]Протокол ШЭ ВОШ по предмету'!B29","v":"Зигангирова"},{"$f":"'[1]Протокол ШЭ ВОШ по предмету'!C29","v":"Амина"},{"$f":"'[1]Протокол ШЭ ВОШ по предмету'!D29","v":"Айдаровна"},{"$f":"'[1]Протокол ШЭ ВОШ по предмету'!H29","v":4},{"$f":"'[1]Протокол ШЭ ВОШ по предмету'!I29","v":4},{"$f":"'[1]Протокол ШЭ ВОШ по предмету'!J29","v":10},{"$f":"'[1]Протокол ШЭ ВОШ по предмету'!K29","v":53},{"$f":"'[1]Протокол ШЭ ВОШ по предмету'!L29","v":"Участник"},{"$f":"'[1]Протокол ШЭ ВОШ по предмету'!N29","v":"Идиятова Рамзия Муллахметовна"}]
[29,{"$f":"'[1]Протокол ШЭ ВОШ по предмету'!B30","v":"Гинанов"},{"$f":"'[1]Протокол ШЭ ВОШ по предмету'!C30","v":"Рузаль"},{"$f":"'[1]Протокол ШЭ ВОШ по предмету'!D30","v":"Ришатович"},{"$f":"'[1]Протокол ШЭ ВОШ по предмету'!H30","v":4},{"$f":"'[1]Протокол ШЭ ВОШ по предмету'!I30","v":4},{"$f":"'[1]Протокол ШЭ ВОШ по предмету'!J30","v":10},{"$f":"'[1]Протокол ШЭ ВОШ по предмету'!K30","v":53},{"$f":"'[1]Протокол ШЭ ВОШ по предмету'!L30","v":"Участник"},{"$f":"'[1]Протокол ШЭ ВОШ по предмету'!N30","v":"Идиятова Рамзия Муллахметовна"}]
[30,{"$f":"'[1]Протокол ШЭ ВОШ по предмету'!B31","v":"Павлов"},{"$f":"'[1]Протокол ШЭ ВОШ по предмету'!C31","v":"Артём"},{"$f":"'[1]Протокол ШЭ ВОШ по предмету'!D31","v":"Петрович"},{"$f":"'[1]Протокол ШЭ ВОШ по предмету'!H31","v":4},{"$f":"'[1]Протокол ШЭ ВОШ по предмету'!I31","v":4},{"$f":"'[1]Протокол ШЭ ВОШ по предмету'!J31","v":8},{"$f":"'[1]Протокол ШЭ ВОШ по предмету'!K31","v":53},{"$f":"'[1]Протокол ШЭ ВОШ по предмету'!L31","v":"Участник"},{"$f":"'[1]Протокол ШЭ ВОШ по предмету'!N31","v":"Идиятова Рамзия Муллахметовна"}]
[31,{"$f":"'[1]Протокол ШЭ ВОШ по предмету'!B32","v":"Холина"},{"$f":"'[1]Протокол ШЭ ВОШ по предмету'!C32","v":"Арина"},{"$f":"'[1]Протокол ШЭ ВОШ по предмету'!D32","v":"Вадимовна"},{"$f":"'[1]Протокол ШЭ ВОШ по предмету'!H32","v":4},{"$f":"'[1]Протокол ШЭ ВОШ по предмету'!I32","v":4},{"$f":"'[1]Протокол ШЭ ВОШ по предмету'!J32","v":7},{"$f":"'[1]Протокол ШЭ ВОШ по предмету'!K32","v":53},{"$f":"'[1]Протокол ШЭ ВОШ по предмету'!L32","v":"Участник"},{"$f":"'[1]Протокол ШЭ ВОШ по предмету'!N32","v":"Идиятова Рамзия Муллахметовна"}]
[32,{"$f":"'[1]Протокол ШЭ ВОШ по предмету'!B33","v":"Фасхиева"},{"$f":"'[1]Протокол ШЭ ВОШ по предмету'!C33","v":"Альбина"},{"$f":"'[1]Протокол ШЭ ВОШ по предмету'!D33","v":"Ильдаровна"},{"$f":"'[1]Протокол ШЭ ВОШ по предмету'!H33","v":4},{"$f":"'[1]Протокол ШЭ ВОШ по предмету'!I33","v":4},{"$f":"'[1]Протокол ШЭ ВОШ по предмету'!J33","v":6},{"$f":"'[1]Протокол ШЭ ВОШ по предмету'!K33","v":53},{"$f":"'[1]Протокол ШЭ ВОШ по предмету'!L33","v":"Участник"},{"$f":"'[1]Протокол ШЭ ВОШ по предмету'!N33","v":"Идиятова Рамзия Муллахметовна"}]
[33,{"$f":"'[1]Протокол ШЭ ВОШ по предмету'!B34","v":"Хасаншина"},{"$f":"'[1]Протокол ШЭ ВОШ по предмету'!C34","v":"Алина"},{"$f":"'[1]Протокол ШЭ ВОШ по предмету'!D34","v":"Руслановна"},{"$f":"'[1]Протокол ШЭ ВОШ по предмету'!H34","v":4},{"$f":"'[1]Протокол ШЭ ВОШ по предмету'!I34","v":4},{"$f":"'[1]Протокол ШЭ ВОШ по предмету'!J34","v":4},{"$f":"'[1]Протокол ШЭ ВОШ по предмету'!K34","v":53},{"$f":"'[1]Протокол ШЭ ВОШ по предмету'!L34","v":"Участник"},{"$f":"'[1]Протокол ШЭ ВОШ по предмету'!N34","v":"Идиятова Рамзия МуллахметовнаМуниципальное "}]

{"sheet":"5 класс","index":1,"n_rows":23,"n_cols":10,"rows_kept":23}
["№","Фамилия","Имя","Отчество","Класс обучения","Класс участия","Балл","Максимальный балл","Статус","ФИО учителя"]
[1,{"$f":"'[2]Протокол ШЭ ВОШ по предмету'!B2","v":"Назипов "},{"$f":"'[2]Протокол ШЭ ВОШ по предмету'!C2","v":"Ринат"},{"$f":"'[2]Протокол ШЭ ВОШ по предмету'!D2","v":"Маратович"},{"$f":"'[2]Протокол ШЭ ВОШ по предмету'!H2","v":5},{"$f":"'[2]Протокол ШЭ ВОШ по предмету'!I2","v":5},{"$f":"'[2]Протокол ШЭ ВОШ по предмету'!J2","v":63},{"$f":"'[2]Протокол ШЭ ВОШ по предмету'!K2","v":63},{"$f":"'[2]Протокол ШЭ ВОШ по предмету'!L2","v":"Победитель"},{"$f":"'[2]Протокол ШЭ ВОШ по предмету'!N2","v":"Абуярова Самаря Миннефайловна"}]
[2,{"$f":"'[2]Протокол ШЭ ВОШ по предмету'!B3","v":"Иванова "},{"$f":"'[2]Протокол ШЭ ВОШ по предмету'!C3","v":"Алина"},{"$f":"'[2]Протокол ШЭ ВОШ по предмету'!D3","v":"Петровна"},{"$f":"'[2]Протокол ШЭ ВОШ по предмету'!H3","v":5},{"$f":"'[2]Протокол ШЭ ВОШ по предмету'!I3","v":5},{"$f":"'[2]Протокол ШЭ ВОШ по предмету'!J3","v":61},{"$f":"'[2]Протокол ШЭ ВОШ по предмету'!K3","v":63},{"$f":"'[2]Протокол ШЭ ВОШ по предмету'!L3","v":"Призер "},{"$f":"'[2]Протокол ШЭ ВОШ по предмету'!N3","v":"Абуярова Самаря Миннефайловна"}]
[3,{"$f":"'[2]Протокол ШЭ ВОШ по предмету'!B4","v":"Власова"},{"$f":"'[2]Протокол ШЭ ВОШ по предмету'!C4","v":"Альбина "},{"$f":"'[2]Протокол ШЭ ВОШ по предмету'!D4","v":"Владимировна"},{"$f":"'[2]Протокол ШЭ ВОШ по предмету'!H4","v":5},{"$f":"'[2]Протокол ШЭ ВОШ по предмету'!I4","v":5},{"$f":"'[2]Протокол ШЭ ВОШ по предмету'!J4","v":59},{"$f":"'[2]Протокол ШЭ ВОШ по предмету'!K4","v":63},{"$f":"'[2]Протокол ШЭ ВОШ по предмету'!L4","v":"Участник"},{"$f":"'[2]Протокол ШЭ ВОШ по предмету'!N4","v":"Абуярова Самаря Миннефайловна"}]
[4,{"$f":"'[2]Протокол ШЭ ВОШ по предмету'!B5","v":"Муфахаров"},{"$f":"'[2]Протокол ШЭ ВОШ по предмету'!C5","v":"Тимур"},{"$f":"'[2]Протокол ШЭ ВОШ по предмету'!D5","v":"Зуфарович"},{"$f":"'[2]Протокол ШЭ ВОШ по предмету'!H5","v":5},{"$f":"'[2]Протокол ШЭ ВОШ по предмету'!I5","v":5},{"$f":"'[2]Протокол ШЭ ВОШ по предмету'!J5","v":55},{"$f":"'[2]Протокол ШЭ ВОШ по предмету'!K5","v":63},{"$f":"'[2]Протокол ШЭ ВОШ по предмету'!L5","v":"Участник"},{"$f":"'[2]Протокол ШЭ ВОШ по предмету'!N5","v":"Абуярова Самаря Миннефайловна"}]
[5,{"$f":"'[2]Протокол ШЭ ВОШ по предмету'!B6","v":"Дехтярева"},{"$f":"'[2]Протокол ШЭ ВОШ по предмету'!C6","v":"Анна"},{"$f":"'[2]Протокол ШЭ ВОШ по предмету'!D6","v":"Артемовна"},{"$f":"'[2]Протокол ШЭ ВОШ по предмету'!H6","v":5},{"$f":"'[2]Протокол ШЭ ВОШ по предмету'!I6","v":5},{"$f":"'[2]Протокол ШЭ ВОШ по предмету'!J6","v":50},{"$f":"'[2]Протокол ШЭ ВОШ по предмету'!K6","v":63},{"$f":"'[2]Протокол ШЭ ВОШ по предмету'!L6","v":"Участник"},{"$f":"'[2]Протокол ШЭ ВОШ по предмету'!N6","v":"Абуярова Самаря Миннефайловна"}]
[6,{"$f":"'[2]Протокол ШЭ ВОШ по предмету'!B7","v":"Антонов"},{"$f":"'[2]Протокол ШЭ ВОШ по предмету'!C7","v":"Михаил"},{"$f":"'[2]Протокол ШЭ ВОШ по предмету'!D7","v":"Андреевич"},{"$f":"'[2]Протокол ШЭ ВОШ по предмету'!H7","v":5},{"$f":"'[2]Протокол ШЭ ВОШ по предмету'!I7","v":5},{"$f":"'[2]Протокол ШЭ ВОШ по предмету'!J7","v":47},{"$f":"'[2]Протокол ШЭ ВОШ по предмету'!K7","v":63},{"$f":"'[2]Протокол ШЭ ВОШ по предмету'!L7","v":"Участник"},{"$f":"'[2]Протокол ШЭ ВОШ по предмету'!N7","v":"Абуярова Самаря Миннефайловна"}]
[7,{"$f":"'[2]Протокол ШЭ ВОШ по предмету'!B8","v":"Сулейманов"},{"$f":"'[2]Протокол ШЭ ВОШ по предмету'!C8","v":"Ильнур"},{"$f":"'[2]Протокол ШЭ ВОШ по предмету'!D8","v":"Рамилевич"},{"$f":"'[2]Протокол ШЭ ВОШ по предмету'!H8","v":5},{"$f":"'[2]Протокол ШЭ ВОШ по предмету'!I8","v":5},{"$f":"'[2]Протокол ШЭ ВОШ по предмету'!J8","v":44},{"$f":"'[2]Протокол ШЭ ВОШ по предмету'!K8","v":63},{"$f":"'[2]Протокол ШЭ ВОШ по предмету'!L8","v":"Участник"},{"$f":"'[2]Протокол ШЭ ВОШ по предмету'!N8","v":"Абуярова Самаря Миннефайловна"}]
[8,{"$f":"'[2]Протокол ШЭ ВОШ по предмету'!B9","v":"Абрамов"},{"$f":"'[2]Протокол ШЭ ВОШ по предмету'!C9","v":"Роман"},{"$f":"'[2]Протокол ШЭ ВОШ по предмету'!D9","v":"Андреевич"},{"$f":"'[2]Протокол ШЭ ВОШ по предмету'!H9","v":5},{"$f":"'[2]Протокол ШЭ ВОШ по предмету'!I9","v":5},{"$f":"'[2]Протокол ШЭ ВОШ по предмету'!J9","v":43},{"$f":"'[2]Протокол ШЭ ВОШ по предмету'!K9","v":63},{"$f":"'[2]Протокол ШЭ ВОШ по предмету'!L9","v":"Участник"},{"$f":"'[2]Протокол ШЭ ВОШ по предмету'!N9","v":"Абуярова Самаря Миннефайловна"}]
[9,{"$f":"'[2]Протокол ШЭ ВОШ по предмету'!B10","v":"Хаметов"},{"$f":"'[2]Протокол ШЭ ВОШ по предмету'!C10","v":"Дарья"},{"$f":"'[2]Протокол ШЭ ВОШ по предмету'!D10","v":"Равилевна"},{"$f":"'[2]Протокол ШЭ ВОШ по предмету'!H10","v":5},{"$f":"'[2]Протокол ШЭ ВОШ по предмету'!I10","v":5},{"$f":"'[2]Протокол ШЭ ВОШ по предмету'!J10","v":43},{"$f":"'[2]Протокол ШЭ ВОШ по предмету'!K10","v":63},{"$f":"'[2]Протокол ШЭ ВОШ по предмету'!L10","v":"Участник"},{"$f":"'[2]Протокол ШЭ ВОШ по предмету'!N10","v":"Абуярова Самаря Миннефайловна"}]
[10,{"$f":"'[2]Протокол ШЭ ВОШ по предмету'!B11","v":"Михайлова"},{"$f":"'[2]Протокол ШЭ ВОШ по предмету'!C11","v":"Лия"},{"$f":"'[2]Протокол ШЭ ВОШ по предмету'!D11","v":"Александровна"},{"$f":"'[2]Протокол ШЭ ВОШ по предмету'!H11","v":5},{"$f":"'[2]Протокол ШЭ ВОШ по предмету'!I11","v":5},{"$f":"'[2]Протокол ШЭ ВОШ по предмету'!J11","v":40},{"$f":"'[2]Протокол ШЭ ВОШ по предмету'!K11","v":63},{"$f":"'[2]Протокол ШЭ ВОШ по предмету'!L11","v":"Участник"},{"$f":"'[2]Протокол ШЭ ВОШ по предмету'!N11","v":"Абуярова Самаря Миннефайловна"}]
[11,{"$f":"'[2]Протокол ШЭ ВОШ по предмету'!B12","v":"Адиева"},{"$f":"'[2]Протокол ШЭ ВОШ по предмету'!C12","v":"Диляра"},{"$f":"'[2]Протокол ШЭ ВОШ по предмету'!D12","v":"Альмировна"},{"$f":"'[2]Протокол ШЭ ВОШ по предмету'!H12","v":5},{"$f":"'[2]Протокол ШЭ ВОШ по предмету'!I12","v":5},{"$f":"'[2]Протокол ШЭ ВОШ по предмету'!J12","v":39},{"$f":"'[2]Протокол ШЭ ВОШ по предмету'!K12","v":63},{"$f":"'[2]Протокол ШЭ ВОШ по предмету'!L12","v":"Участник"},{"$f":"'[2]Протокол ШЭ ВОШ по предмету'!N12","v":"Абуярова Самаря Миннефайловна"}]
[12,{"$f":"'[2]Протокол ШЭ ВОШ по предмету'!B13","v":"Исаков"},{"$f":"'[2]Протокол ШЭ ВОШ по предмету'!C13","v":"Айнур"},{"$f":"'[2]Протокол ШЭ ВОШ по предмету'!D13","v":"Маратович"},{"$f":"'[2]Протокол ШЭ ВОШ по предмету'!H13","v":5},{"$f":"'[2]Протокол ШЭ ВОШ по предмету'!I13","v":5},{"$f":"'[2]Протокол ШЭ ВОШ по предмету'!J13","v":37},{"$f":"'[2]Протокол ШЭ ВОШ по предмету'!K13","v":63},{"$f":"'[2]Протокол ШЭ ВОШ по предмету'!L13","v":"Участник"},{"$f":"'[2]Протокол ШЭ ВОШ по предмету'!N13","v":"Абуярова Самаря Миннефайловна"}]
[13,{"$f":"'[2]Протокол ШЭ ВОШ по предмету'!B14","v":"Устюжин"},{"$f":"'[2]Протокол ШЭ ВОШ по предмету'!C14","v":"Роман"},{"$f":"'[2]Протокол ШЭ ВОШ по предмету'!D14","v":"Юрьевич"},{"$f":"'[2]Протокол ШЭ ВОШ по предмету'!H14","v":5},{"$f":"'[2]Протокол ШЭ ВОШ по предмету'!I14","v":5},{"$f":"'[2]Протокол ШЭ ВОШ по предмету'!J14","v":35},{"$f":"'[2]Протокол ШЭ ВОШ по предмету'!K14","v":63},{"$f":"'[2]Протокол ШЭ ВОШ по предмету'!L14","v":"Участник"},{"$f":"'[2]Протокол ШЭ ВОШ по предмету'!N14","v":"Абуярова Самаря Миннефайловна"}]
[14,{"$f":"'[2]Протокол ШЭ ВОШ по предмету'!B15","v":"Стежко"},{"$f":"'[2]Протокол ШЭ ВОШ по предмету'!C15","v":"Захар"},{"$f":"'[2]Протокол ШЭ ВОШ по предмету'!D15","v":"Валерьевич"},{"$f":"'[2]Протокол ШЭ ВОШ по предмету'!H15","v":5},{"$f":"'[2]Протокол ШЭ ВОШ по предмету'!I15","v":5},{"$f":"'[2]Протокол ШЭ ВОШ по предмету'!J15","v":34},{"$f":"'[2]Протокол ШЭ ВОШ по предмету'!K15","v":63},{"$f":"'[2]Протокол ШЭ ВОШ по предмету'!L15","v":"Участник"},{"$f":"'[2]Протокол ШЭ ВОШ по предмету'!N15","v":"Абуярова Самаря Миннефайловна"}]
[15,{"$f":"'[2]Протокол ШЭ ВОШ по предмету'!B16","v":"Галиев"},{"$f":"'[2]Протокол ШЭ ВОШ по предмету'!C16","v":"Рамазан"},{"$f":"'[2]Протокол ШЭ ВОШ по предмету'!D16","v":"Маратович"},{"$f":"'[2]Протокол ШЭ ВОШ по предмету'!H16","v":5},{"$f":"'[2]Протокол ШЭ ВОШ по предмету'!I16","v":5},{"$f":"'[2]Протокол ШЭ ВОШ по предмету'!J16","v":33},{"$f":"'[2]Протокол ШЭ ВОШ по предмету'!K16","v":63},{"$f":"'[2]Протокол ШЭ ВОШ по предмету'!L16","v":"Участник"},{"$f":"'[2]Протокол ШЭ ВОШ по предмету'!N16","v":"Абуярова Самаря Миннефайловна"}]
[16,{"$f":"'[2]Протокол ШЭ ВОШ по предмету'!B17","v":"Миннаков"},{"$f":"'[2]Протокол ШЭ ВОШ по предмету'!C17","v":"Камиль"},{"$f":"'[2]Протокол ШЭ ВОШ по предмету'!D17","v":"Раифович"},{"$f":"'[2]Протокол ШЭ ВОШ по предмету'!H17","v":5},{"$f":"'[2]Протокол ШЭ ВОШ по предмету'!I17","v":5},{"$f":"'[2]Протокол ШЭ ВОШ по предмету'!J17","v":33},{"$f":"'[2]Протокол ШЭ ВОШ по предмету'!K17","v":63},{"$f":"'[2]Протокол ШЭ ВОШ по предмету'!L17","v":"Участник"},{"$f":"'[2]Протокол ШЭ ВОШ по предмету'!N17","v":"Абуярова Самаря Миннефайловна"}]
[17,{"$f":"'[2]Протокол ШЭ ВОШ по предмету'!B18","v":"Ибрагимова"},{"$f":"'[2]Протокол ШЭ ВОШ по предмету'!C18","v":"Алина"},{"$f":"'[2]Протокол ШЭ ВОШ по предмету'!D18","v":"Линаровна"},{"$f":"'[2]Протокол ШЭ ВОШ по предмету'!H18","v":5},{"$f":"'[2]Протокол ШЭ ВОШ по предмету'!I18","v":5},{"$f":"'[2]Протокол ШЭ ВОШ по предмету'!J18","v":32},{"$f":"'[2]Протокол ШЭ ВОШ по предмету'!K18","v":63},{"$f":"'[2]Протокол ШЭ ВОШ по предмету'!L18","v":"Участник"},{"$f":"'[2]Протокол ШЭ ВОШ по предмету'!N18","v":"Абуярова Самаря Миннефайловна"}]
[18,{"$f":"'[2]Протокол ШЭ ВОШ по предмету'!B19","v":"Адиева"},{"$f":"'[2]Протокол ШЭ ВОШ по предмету'!C19","v":"Диляра"},{"$f":"'[2]Протокол ШЭ ВОШ по предмету'!D19","v":"Альмировна"},{"$f":"'[2]Протокол ШЭ ВОШ по предмету'!H19","v":5},{"$f":"'[2]Протокол ШЭ ВОШ по предмету'!I19","v":5},{"$f":"'[2]Протокол ШЭ ВОШ по предмету'!J19","v":29},{"$f":"'[2]Протокол ШЭ ВОШ по предмету'!K19","v":63},{"$f":"'[2]Протокол ШЭ ВОШ по предмету'!L19","v":"Участник"},{"$f":"'[2]Протокол ШЭ ВОШ по предмету'!N19","v":"Абуярова Самаря Миннефайловна"}]
[19,{"$f":"'[2]Протокол ШЭ ВОШ по предмету'!B20","v":"Бухаров"},{"$f":"'[2]Протокол ШЭ ВОШ по предмету'!C20","v":"Дмитрий"},{"$f":"'[2]Протокол ШЭ ВОШ по предмету'!D20","v":"Русланович"},{"$f":"'[2]Протокол ШЭ ВОШ по предмету'!H20","v":5},{"$f":"'[2]Протокол ШЭ ВОШ по предмету'!I20","v":5},{"$f":"'[2]Протокол ШЭ ВОШ по предмету'!J20","v":27},{"$f":"'[2]Протокол ШЭ ВОШ по предмету'!K20","v":63},{"$f":"'[2]Протокол ШЭ ВОШ по предмету'!L20","v":"Участник"},{"$f":"'[2]Протокол ШЭ ВОШ по предмету'!N20","v":"Абуярова Самаря Миннефайловна"}]
[20,{"$f":"'[2]Протокол ШЭ ВОШ по предмету'!B21","v":"Мавлютова"},{"$f":"'[2]Протокол ШЭ ВОШ по предмету'!C21","v":"Камелия"},{"$f":"'[2]Протокол ШЭ ВОШ по предмету'!D21","v":"Рустемовна"},{"$f":"'[2]Протокол ШЭ ВОШ по предмету'!H21","v":5},{"$f":"'[2]Протокол ШЭ ВОШ по предмету'!I21","v":5},{"$f":"'[2]Протокол ШЭ ВОШ по предмету'!J21","v":25},{"$f":"'[2]Протокол ШЭ ВОШ по предмету'!K21","v":63},{"$f":"'[2]Протокол ШЭ ВОШ по предмету'!L21","v":"Участник"},{"$f":"'[2]Протокол ШЭ ВОШ по предмету'!N21","v":"Абуярова Самаря Миннефайловна"}]
[21,{"$f":"'[2]Протокол ШЭ ВОШ по предмету'!B22","v":"Щетинин"},{"$f":"'[2]Протокол ШЭ ВОШ по предмету'!C22","v":"Артем"},{"$f":"'[2]Протокол ШЭ ВОШ по предмету'!D22","v":"Сергеевич"},{"$f":"'[2]Протокол ШЭ ВОШ по предмету'!H22","v":5},{"$f":"'[2]Протокол ШЭ ВОШ по предмету'!I22","v":5},{"$f":"'[2]Протокол ШЭ ВОШ по предмету'!J22","v":20},{"$f":"'[2]Протокол ШЭ ВОШ по предмету'!K22","v":63},{"$f":"'[2]Протокол ШЭ ВОШ по предмету'!L22","v":"Участник"},{"$f":"'[2]Протокол ШЭ ВОШ по предмету'!N22","v":"Абуярова Самаря Миннефайловна"}]
[22,{"$f":"'[2]Протокол ШЭ ВОШ по предмету'!B23","v":"Шестаков"},{"$f":"'[2]Протокол ШЭ ВОШ по предмету'!C23","v":"Роман"},{"$f":"'[2]Протокол ШЭ ВОШ по предмету'!D23","v":"Юрьевич"},{"$f":"'[2]Протокол ШЭ ВОШ по предмету'!H23","v":5},{"$f":"'[2]Протокол ШЭ ВОШ по предмету'!I23","v":5},{"$f":"'[2]Протокол ШЭ ВОШ по предмету'!J23","v":18},{"$f":"'[2]Протокол ШЭ ВОШ по предмету'!K23","v":63},{"$f":"'[2]Протокол ШЭ ВОШ по предмету'!L23","v":"Участник"},{"$f":"'[2]Протокол ШЭ ВОШ по предмету'!N23","v":"Абуярова Самаря Миннефайловна"}]

{"sheet":"6 класс","index":2,"n_rows":12,"n_cols":10,"rows_kept":12}
["№","Фамилия","Имя","Отчество","Класс обучения","Класс участия","Балл","Максимальный балл","Статус","ФИО учителя"]
[1,{"$f":"'[6]Протокол ШЭ ВОШ по предмету'!B2","v":"Маслов"},{"$f":"'[6]Протокол ШЭ ВОШ по предмету'!C2","v":"Артем"},{"$f":"'[6]Протокол ШЭ ВОШ по предмету'!D2","v":"Андреевич"},{"$f":"'[6]Протокол ШЭ ВОШ по предмету'!H2","v":6},{"$f":"'[6]Протокол ШЭ ВОШ по предмету'!I2","v":6},{"$f":"'[6]Протокол ШЭ ВОШ по предмету'!J2","v":79},{"$f":"'[6]Протокол ШЭ ВОШ по предмету'!K2","v":81},{"$f":"'[6]Протокол ШЭ ВОШ по предмету'!L2","v":"Победитель"},{"$f":"'[6]Протокол ШЭ ВОШ по предмету'!N2","v":"Ахмадиева Рузиля Рафаэловна"}]
[2,{"$f":"'[6]Протокол ШЭ ВОШ по предмету'!B3","v":"Захаров"},{"$f":"'[6]Протокол ШЭ ВОШ по предмету'!C3","v":"Арсений"},{"$f":"'[6]Протокол ШЭ ВОШ по предмету'!D3","v":"Александрович"},{"$f":"'[6]Протокол ШЭ ВОШ по предмету'!H3","v":6},{"$f":"'[6]Протокол ШЭ ВОШ по предмету'!I3","v":6},{"$f":"'[6]Протокол ШЭ ВОШ по предмету'!J3","v":60},{"$f":"'[6]Протокол ШЭ ВОШ по предмету'!K3","v":81},{"$f":"'[6]Протокол ШЭ ВОШ по предмету'!L3","v":"Участник"},{"$f":"'[6]Протокол ШЭ ВОШ по предмету'!N3","v":"Ахмадиева Рузиля Рафаэловна"}]
[3,{"$f":"'[6]Протокол ШЭ ВОШ по предмету'!B4","v":"Кузягин"},{"$f":"'[6]Протокол ШЭ ВОШ по предмету'!C4","v":"Семен"},{"$f":"'[6]Протокол ШЭ ВОШ по предмету'!D4","v":"Дмитриевич"},{"$f":"'[6]Протокол ШЭ ВОШ по предмету'!H4","v":6},{"$f":"'[6]Протокол ШЭ ВОШ по предмету'!I4","v":6},{"$f":"'[6]Протокол ШЭ ВОШ по предмету'!J4","v":53},{"$f":"'[6]Протокол ШЭ ВОШ по предмету'!K4","v":81},{"$f":"'[6]Протокол ШЭ ВОШ по предмету'!L4","v":"Участник"},{"$f":"'[6]Протокол ШЭ ВОШ по предмету'!N4","v":"Ахмадиева Рузиля Рафаэловна"}]
[4,{"$f":"'[6]Протокол ШЭ ВОШ по предмету'!B5","v":"Кирюшенкова"},{"$f":"'[6]Протокол ШЭ ВОШ по предмету'!C5","v":"Анастасия"},{"$f":"'[6]Протокол ШЭ ВОШ по предмету'!D5","v":"Вячеславовна"},{"$f":"'[6]Протокол ШЭ ВОШ по предмету'!H5","v":6},{"$f":"'[6]Протокол ШЭ ВОШ по предмету'!I5","v":6},{"$f":"'[6]Протокол ШЭ ВОШ по предмету'!J5","v":47},{"$f":"'[6]Протокол ШЭ ВОШ по предмету'!K5","v":81},{"$f":"'[6]Протокол ШЭ ВОШ по предмету'!L5","v":"Участник"},{"$f":"'[6]Протокол ШЭ ВОШ по предмету'!N5","v":"Ахмадиева Рузиля Рафаэловна"}]
[5,{"$f":"'[6]Протокол ШЭ ВОШ по предмету'!B6","v":"Ларионов"},{"$f":"'[6]Протокол ШЭ ВОШ по предмету'!C6","v":"Данил"},{"$f":"'[6]Протокол ШЭ ВОШ по предмету'!D6","v":"Владимирович"},{"$f":"'[6]Протокол ШЭ ВОШ по предмету'!H6","v":6},{"$f":"'[6]Протокол ШЭ ВОШ по предмету'!I6","v":6},{"$f":"'[6]Протокол ШЭ ВОШ по предмету'!J6","v":44},{"$f":"'[6]Протокол ШЭ ВОШ по предмету'!K6","v":81},{"$f":"'[6]Протокол ШЭ ВОШ по предмету'!L6","v":"Участник"},{"$f":"'[6]Протокол ШЭ ВОШ по предмету'!N6","v":"Ахмадиева Рузиля Рафаэловна"}]
[6,{"$f":"'[6]Протокол ШЭ ВОШ по предмету'!B7","v":"Галкина"},{"$f":"'[6]Протокол ШЭ ВОШ по предмету'!C7","v":"Дарья"},{"$f":"'[6]Протокол ШЭ ВОШ по предмету'!D7","v":"Александровна"},{"$f":"'[6]Протокол ШЭ ВОШ по предмету'!H7","v":6},{"$f":"'[6]Протокол ШЭ ВОШ по предмету'!I7","v":6},{"$f":"'[6]Протокол ШЭ ВОШ по предмету'!J7","v":39},{"$f":"'[6]Протокол ШЭ ВОШ по предмету'!K7","v":81},{"$f":"'[6]Протокол ШЭ ВОШ по предмету'!L7","v":"Участник"},{"$f":"'[6]Протокол ШЭ ВОШ по предмету'!N7","v":"Ахмадиева Рузиля Рафаэловна"}]
[7,{"$f":"'[6]Протокол ШЭ ВОШ по предмету'!B8","v":"Мельников"},{"$f":"'[6]Протокол ШЭ ВОШ по предмету'!C8","v":"Ярослав "},{"$f":"'[6]Протокол ШЭ ВОШ по предмету'!D8","v":"Андреевич"},{"$f":"'[6]Протокол ШЭ ВОШ по предмету'!H8","v":6},{"$f":"'[6]Протокол ШЭ ВОШ по предмету'!I8","v":6},{"$f":"'[6]Протокол ШЭ ВОШ по предмету'!J8","v":35},{"$f":"'[6]Протокол ШЭ ВОШ по предмету'!K8","v":81},{"$f":"'[6]Протокол ШЭ ВОШ по предмету'!L8","v":"Участник"},{"$f":"'[6]Протокол ШЭ ВОШ по предмету'!N8","v":"Ахмадиева Рузиля Рафаэловна"}]
[8,{"$f":"'[6]Протокол ШЭ ВОШ по предмету'!B9","v":"Никитин"},{"$f":"'[6]Протокол ШЭ ВОШ по предмету'!C9","v":"Федор"},{"$f":"'[6]Протокол ШЭ ВОШ по предмету'!D9","v":"Александрович"},{"$f":"'[6]Протокол ШЭ ВОШ по предмету'!H9","v":6},{"$f":"'[6]Протокол ШЭ ВОШ по предмету'!I9","v":6},{"$f":"'[6]Протокол ШЭ ВОШ по предмету'!J9","v":30},{"$f":"'[6]Протокол ШЭ ВОШ по предмету'!K9","v":81},{"$f":"'[6]Протокол ШЭ ВОШ по предмету'!L9","v":"Участник"},{"$f":"'[6]Протокол ШЭ ВОШ по предмету'!N9","v":"Ахмадиева Рузиля Рафаэловна"}]
[9,{"$f":"'[6]Протокол ШЭ ВОШ по предмету'!B10","v":"Рязанов"},{"$f":"'[6]Протокол ШЭ ВОШ по предмету'!C10","v":"Арсений"},{"$f":"'[6]Протокол ШЭ ВОШ по предмету'!D10","v":"Андреевич"},{"$f":"'[6]Протокол ШЭ ВОШ по предмету'!H10","v":6},{"$f":"'[6]Протокол ШЭ ВОШ по предмету'!I10","v":6},{"$f":"'[6]Протокол ШЭ ВОШ по предмету'!J10","v":25},{"$f":"'[6]Протокол ШЭ ВОШ по предмету'!K10","v":81},{"$f":"'[6]Протокол ШЭ ВОШ по предмету'!L10","v":"Участник"},{"$f":"'[6]Протокол ШЭ ВОШ по предмету'!N10","v":"Ахмадиева Рузиля Рафаэловна"}]
[10,{"$f":"'[6]Протокол ШЭ ВОШ по предмету'!B11","v":"Сергеев"},{"$f":"'[6]Протокол ШЭ ВОШ по предмету'!C11","v":"Илья"},{"$f":"'[6]Протокол ШЭ ВОШ по предмету'!D11","v":"Сергеевич"},{"$f":"'[6]Протокол ШЭ ВОШ по предмету'!H11","v":6},{"$f":"'[6]Протокол ШЭ ВОШ по предмету'!I11","v":6},{"$f":"'[6]Протокол ШЭ ВОШ по предмету'!J11","v":19},{"$f":"'[6]Протокол ШЭ ВОШ по предмету'!K11","v":81},{"$f":"'[6]Протокол ШЭ ВОШ по предмету'!L11","v":"Участник"},{"$f":"'[6]Протокол ШЭ ВОШ по предмету'!N11","v":"Ахмадиева Рузиля Рафаэловна"}]
[11,{"$f":"'[6]Протокол ШЭ ВОШ по предмету'!B12","v":"Чумак"},{"$f":"'[6]Протокол ШЭ ВОШ по предмету'!C12","v":"Роман"},{"$f":"'[6]Протокол ШЭ ВОШ по предмету'!D12","v":"Николаевич"},{"$f":"'[6]Протокол ШЭ ВОШ по предмету'!H12","v":6},{"$f":"'[6]Протокол ШЭ ВОШ по предмету'!I12","v":6},{"$f":"'[6]Протокол ШЭ ВОШ по предмету'!J12","v":16},{"$f":"'[6]Протокол ШЭ ВОШ по предмету'!K12","v":81},{"$f":"'[6]Протокол ШЭ ВОШ по предмету'!L12","v":"Участник"},{"$f":"'[6]Протокол ШЭ ВОШ по предмету'!N12","v":"Ахмадиева Рузиля Рафаэловна"}]

{"sheet":"7 класс","index":3,"n_rows":12,"n_cols":10,"rows_kept":12}
["№","Фамилия","Имя","Отчество","Класс обучения","Класс участия","Балл","Максимальный балл","Статус","ФИО учителя"]
[1,"Климова","Софья","Тимофеевна",7,7,80,83,"Победитель","Ахмадиева Рузиля Рафаэловна"]
[2,"Зарипова","Милена","Айратовна",7,7,39,83,"Участник","Ахмадиева Рузиля Рафаэловна"]
[3,"Оладышкина","Карина","Дмитриевна",7,7,37,83,"Участник","Ахмадиева Рузиля Рафаэловна"]
[4,"Ахметзянова","Амиля","Зуфаровна",7,7,35,83,"Участник","Ахмадиева Рузиля Рафаэловна"]
[5,"Майорова","Александра","Алексеевна",7,7,33,83,"Участник","Ахмадиева Рузиля Рафаэловна"]
[6,"Низамов","Карим","Марселевич",7,7,31,83,"Участник","Ахмадиева Рузиля Рафаэловна"]
[7,"Махмутова","Аделя","Ринатовна",7,7,27,83,"Участник","Ахмадиева Рузиля Рафаэловна"]
[8,"Хузина","Самира","Ленаровна",7,7,26,83,"Участник","Ахмадиева Рузиля Рафаэловна"]
[9,"Хунафин","Ислам","Артурович",7,7,23,83,"Участник","Ахмадиева Рузиля Рафаэловна"]
[10,"Хисматуллин","Ленар","Ирекович",7,7,20.6,83,"Участник","Ахмадиева Рузиля Рафаэловна"]
[11,"Тихонова","Карина","Александровна",7,7,19,83,"Участник","Ахмадиева Рузиля Рафаэловна"]

{"sheet":"8 класс","index":4,"n_rows":11,"n_cols":10,"rows_kept":11}
["№","Фамилия","Имя","Отчество","Класс обучения","Класс участия","Балл","Максимальный балл","Статус","ФИО учителя"]
[1,{"$f":"'[3]Протокол ШЭ ВОШ по предмету'!B2","v":"Князева "},{"$f":"'[3]Протокол ШЭ ВОШ по предмету'!C2","v":"Виктория"},{"$f":"'[3]Протокол ШЭ ВОШ по предмету'!D2","v":"Анатольевна"},{"$f":"'[3]Протокол ШЭ ВОШ по предмету'!H2","v":8},{"$f":"'[3]Протокол ШЭ ВОШ по предмету'!I2","v":8},89,{"$f":"'[3]Протокол ШЭ ВОШ по предмету'!K2","v":110},"Победитель",{"$f":"'[3]Протокол ШЭ ВОШ по предмету'!N2","v":"Абуярова Самаря Миннефайловна"}]
[2,{"$f":"'[3]Протокол ШЭ ВОШ по предмету'!B3","v":"Мутаева"},{"$f":"'[3]Протокол ШЭ ВОШ по предмету'!C3","v":"Александра"},{"$f":"'[3]Протокол ШЭ ВОШ по предмету'!D3","v":"Александровна"},{"$f":"'[3]Протокол ШЭ ВОШ по предмету'!H3","v":8},{"$f":"'[3]Протокол ШЭ ВОШ по предмету'!I3","v":8},80,{"$f":"'[3]Протокол ШЭ ВОШ по предмету'!K3","v":110},"Участник",{"$f":"'[3]Протокол ШЭ ВОШ по предмету'!N3","v":"Абуярова Самаря Миннефайловна"}]
[3,{"$f":"'[3]Протокол ШЭ ВОШ по предмету'!B4","v":"Насибуллина "},{"$f":"'[3]Протокол ШЭ ВОШ по предмету'!C4","v":"Залия"},{"$f":"'[3]Протокол ШЭ ВОШ по предмету'!D4","v":"Ильдаровна"},{"$f":"'[3]Протокол ШЭ ВОШ по предмету'!H4","v":8},{"$f":"'[3]Протокол ШЭ ВОШ по предмету'!I4","v":8},{"$f":"'[3]Протокол ШЭ ВОШ по предмету'!J4","v":77},{"$f":"'[3]Протокол ШЭ ВОШ по предмету'!K4","v":110},{"$f":"'[3]Протокол ШЭ ВОШ по предмету'!L4","v":"Участник"},{"$f":"'[3]Протокол ШЭ ВОШ по предмету'!N4","v":"Абуярова Самаря Миннефайловна"}]
[4,{"$f":"'[3]Протокол ШЭ ВОШ по предмету'!B5","v":"Каргин "},{"$f":"'[3]Протокол ШЭ ВОШ по предмету'!C5","v":"Максим"},{"$f":"'[3]Протокол ШЭ ВОШ по предмету'!D5","v":"Олеович"},{"$f":"'[3]Протокол ШЭ ВОШ по предмету'!H5","v":8},{"$f":"'[3]Протокол ШЭ ВОШ по предмету'!I5","v":8},{"$f":"'[3]Протокол ШЭ ВОШ по предмету'!J5","v":60},{"$f":"'[3]Протокол ШЭ ВОШ по предмету'!K5","v":110},{"$f":"'[3]Протокол ШЭ ВОШ по предмету'!L5","v":"Участник"},{"$f":"'[3]Протокол ШЭ ВОШ по предмету'!N5","v":"Абуярова Самаря Миннефайловна"}]
[5,{"$f":"'[3]Протокол ШЭ ВОШ по предмету'!B6","v":"Ахметвалеев "},{"$f":"'[3]Протокол ШЭ ВОШ по предмету'!C6","v":"Ильназ"},{"$f":"'[3]Протокол ШЭ ВОШ по предмету'!D6","v":"Ильгизович"},{"$f":"'[3]Протокол ШЭ ВОШ по предмету'!H6","v":8},{"$f":"'[3]Протокол ШЭ ВОШ по предмету'!I6","v":8},{"$f":"'[3]Протокол ШЭ ВОШ по предмету'!J6","v":60},{"$f":"'[3]Протокол ШЭ ВОШ по предмету'!K6","v":110},{"$f":"'[3]Протокол ШЭ ВОШ по предмету'!L6","v":"Участник"},{"$f":"'[3]Протокол ШЭ ВОШ по предмету'!N6","v":"Абуярова Самаря Миннефайловна"}]
[6,{"$f":"'[3]Протокол ШЭ ВОШ по предмету'!B7","v":"Липатова"},{"$f":"'[3]Протокол ШЭ ВОШ по предмету'!C7","v":"Алина"},{"$f":"'[3]Протокол ШЭ ВОШ по предмету'!D7","v":"Романовна"},{"$f":"'[3]Протокол ШЭ ВОШ по предмету'!H7","v":8},{"$f":"'[3]Протокол ШЭ ВОШ по предмету'!I7","v":8},{"$f":"'[3]Протокол ШЭ ВОШ по предмету'!J7","v":55},{"$f":"'[3]Протокол ШЭ ВОШ по предмету'!K7","v":110},{"$f":"'[3]Протокол ШЭ ВОШ по предмету'!L7","v":"Участник"},{"$f":"'[3]Протокол ШЭ ВОШ по предмету'!N7","v":"Абуярова Самаря Миннефайловна"}]
[7,{"$f":"'[3]Протокол ШЭ ВОШ по предмету'!B8","v":"Тихонова"},{"$f":"'[3]Протокол ШЭ ВОШ по предмету'!C8","v":"Диана"},{"$f":"'[3]Протокол ШЭ ВОШ по предмету'!D8","v":"Александровна"},{"$f":"'[3]Протокол ШЭ ВОШ по предмету'!H8","v":8},{"$f":"'[3]Протокол ШЭ ВОШ по предмету'!I8","v":8},{"$f":"'[3]Протокол ШЭ ВОШ по предмету'!J8","v":48},{"$f":"'[3]Протокол ШЭ ВОШ по предмету'!K8","v":110},{"$f":"'[3]Протокол ШЭ ВОШ по предмету'!L8","v":"Участник"},{"$f":"'[3]Протокол ШЭ ВОШ по предмету'!N8","v":"Абуярова Самаря Миннефайловна"}]
[8,{"$f":"'[3]Протокол ШЭ ВОШ по предмету'!B9","v":"Артюшина"},{"$f":"'[3]Протокол ШЭ ВОШ по предмету'!C9","v":"Светлана"},{"$f":"'[3]Протокол ШЭ ВОШ по предмету'!D9","v":"Петровна"},{"$f":"'[3]Протокол ШЭ ВОШ по предмету'!H9","v":8},{"$f":"'[3]Протокол ШЭ ВОШ по предмету'!I9","v":8},{"$f":"'[3]Протокол ШЭ ВОШ по предмету'!J9","v":44},{"$f":"'[3]Протокол ШЭ ВОШ по предмету'!K9","v":110},{"$f":"'[3]Протокол ШЭ ВОШ по предмету'!L9","v":"Участник"},{"$f":"'[3]Протокол ШЭ ВОШ по предмету'!N9","v":"Абуярова Самаря Миннефайловна"}]
[9,{"$f":"'[3]Протокол ШЭ ВОШ по предмету'!B10","v":"Климова "},{"$f":"'[3]Протокол ШЭ ВОШ по предмету'!C10","v":"Ангелина"},{"$f":"'[3]Протокол ШЭ ВОШ по предмету'!D10","v":"Константиновна"},{"$f":"'[3]Протокол ШЭ ВОШ по предмету'!H10","v":8},{"$f":"'[3]Протокол ШЭ ВОШ по предмету'!I10","v":8},{"$f":"'[3]Протокол ШЭ ВОШ по предмету'!J10","v":40},{"$f":"'[3]Протокол ШЭ ВОШ по предмету'!K10","v":110},{"$f":"'[3]Протокол ШЭ ВОШ по предмету'!L10","v":"Участник"},{"$f":"'[3]Протокол ШЭ ВОШ по предмету'!N10","v":"Абуярова Самаря Миннефайловна"}]
[10,{"$f":"'[3]Протокол ШЭ ВОШ по предмету'!B11","v":"Лапшин "},{"$f":"'[3]Протокол ШЭ ВОШ по предмету'!C11","v":"Матвей"},{"$f":"'[3]Протокол ШЭ ВОШ по предмету'!D11","v":"Михайлович"},{"$f":"'[3]Протокол ШЭ ВОШ по предмету'!H11","v":8},{"$f":"'[3]Протокол ШЭ ВОШ по предмету'!I11","v":8},{"$f":"'[3]Протокол ШЭ ВОШ по предмету'!J11","v":39},{"$f":"'[3]Протокол ШЭ ВОШ по предмету'!K11","v":110},{"$f":"'[3]Протокол ШЭ ВОШ по предмету'!L11","v":"Участник"},{"$f":"'[3]Протокол ШЭ ВОШ по предмету'!N11","v":"Абуярова Самаря Миннефайловна"}]

{"sheet":"9 класс","index":5,"n_rows":11,"n_cols":10,"rows_kept":11}
["№","Фамилия","Имя","Отчество","Класс обучения","Класс участия","Балл","Максимальный балл","Статус","ФИО учителя"]
[1,{"$f":"'[4]Протокол ШЭ ВОШ по предмету'!B2","v":"Коброва"},{"$f":"'[4]Протокол ШЭ ВОШ по предмету'!C2","v":"Татьяна"},{"$f":"'[4]Протокол ШЭ ВОШ по предмету'!D2","v":"Дмитриевна"},{"$f":"'[4]Протокол ШЭ ВОШ по предмету'!H2","v":9},{"$f":"'[4]Протокол ШЭ ВОШ по предмету'!I2","v":9},{"$f":"'[4]Протокол ШЭ ВОШ по предмету'!J2","v":90},{"$f":"'[4]Протокол ШЭ ВОШ по предмету'!K2","v":105},"Участник",{"$f":"'[4]Протокол ШЭ ВОШ по предмету'!N2","v":"Насырова Фарида Мирсатовна"}]
[2,{"$f":"'[4]Протокол ШЭ ВОШ по предмету'!B3","v":"Макарова "},{"$f":"'[4]Протокол ШЭ ВОШ по предмету'!C3","v":"Милена"},{"$f":"'[4]Протокол ШЭ ВОШ по предмету'!D3","v":"Андреевна"},{"$f":"'[4]Протокол ШЭ ВОШ по предмету'!H3","v":9},{"$f":"'[4]Протокол ШЭ ВОШ по предмету'!I3","v":9},{"$f":"'[4]Протокол ШЭ ВОШ по предмету'!J3","v":88},{"$f":"'[4]Протокол ШЭ ВОШ по предмету'!K3","v":105},{"$f":"'[4]Протокол ШЭ ВОШ по предмету'!L3","v":"Участник"},{"$f":"'[4]Протокол ШЭ ВОШ по предмету'!N3","v":"Насырова Фарида Мирсатовна"}]
[3,{"$f":"'[4]Протокол ШЭ ВОШ по предмету'!B4","v":"Сушкова"},{"$f":"'[4]Протокол ШЭ ВОШ по предмету'!C4","v":"Дарья"},{"$f":"'[4]Протокол ШЭ ВОШ по предмету'!D4","v":"Николаевна"},{"$f":"'[4]Протокол ШЭ ВОШ по предмету'!H4","v":9},{"$f":"'[4]Протокол ШЭ ВОШ по предмету'!I4","v":9},{"$f":"'[4]Протокол ШЭ ВОШ по предмету'!J4","v":81},{"$f":"'[4]Протокол ШЭ ВОШ по предмету'!K4","v":105},{"$f":"'[4]Протокол ШЭ ВОШ по предмету'!L4","v":"Участник"},{"$f":"'[4]Протокол ШЭ ВОШ по предмету'!N4","v":"Насырова Фарида Мирсатовна"}]
[4,{"$f":"'[4]Протокол ШЭ ВОШ по предмету'!B5","v":"Прокопова "},{"$f":"'[4]Протокол ШЭ ВОШ по предмету'!C5","v":"Мария"},{"$f":"'[4]Протокол ШЭ ВОШ по предмету'!D5","v":"Антоновна"},{"$f":"'[4]Протокол ШЭ ВОШ по предмету'!H5","v":9},{"$f":"'[4]Протокол ШЭ ВОШ по предмету'!I5","v":9},{"$f":"'[4]Протокол ШЭ ВОШ по предмету'!J5","v":76},{"$f":"'[4]Протокол ШЭ ВОШ по предмету'!K5","v":105},{"$f":"'[4]Протокол ШЭ ВОШ по предмету'!L5","v":"Участник"},{"$f":"'[4]Протокол ШЭ ВОШ по предмету'!N5","v":"Насырова Фарида Мирсатовна"}]
[5,{"$f":"'[4]Протокол ШЭ ВОШ по предмету'!B6","v":"Груздева"},{"$f":"'[4]Протокол ШЭ ВОШ по предмету'!C6","v":"Валерия"},{"$f":"'[4]Протокол ШЭ ВОШ по предмету'!D6","v":"Ивановна"},{"$f":"'[4]Протокол ШЭ ВОШ по предмету'!H6","v":9},{"$f":"'[4]Протокол ШЭ ВОШ по предмету'!I6","v":9},{"$f":"'[4]Протокол ШЭ ВОШ по предмету'!J6","v":72},{"$f":"'[4]Протокол ШЭ ВОШ по предмету'!K6","v":105},{"$f":"'[4]Протокол ШЭ ВОШ по предмету'!L6","v":"Участник"},{"$f":"'[4]Протокол ШЭ ВОШ по предмету'!N6","v":"Насырова Фарида Мирсатовна"}]
[6,{"$f":"'[4]Протокол ШЭ ВОШ по предмету'!B7","v":"Ташмурзин"},{"$f":"'[4]Протокол ШЭ ВОШ по предмету'!C7","v":"Станислав"},{"$f":"'[4]Протокол ШЭ ВОШ по предмету'!D7","v":"Леонардович"},{"$f":"'[4]Протокол ШЭ ВОШ по предмету'!H7","v":9},{"$f":"'[4]Протокол ШЭ ВОШ по предмету'!I7","v":9},{"$f":"'[4]Протокол ШЭ ВОШ по предмету'!J7","v":67},{"$f":"'[4]Протокол ШЭ ВОШ по предмету'!K7","v":105},{"$f":"'[4]Протокол ШЭ ВОШ по предмету'!L7","v":"Участник"},{"$f":"'[4]Протокол ШЭ ВОШ по предмету'!N7","v":"Насырова Фарида Мирсатовна"}]
[7,{"$f":"'[4]Протокол ШЭ ВОШ по предмету'!B8","v":"Коршунов"},{"$f":"'[4]Протокол ШЭ ВОШ по предмету'!C8","v":"Кирилл"},{"$f":"'[4]Протокол ШЭ ВОШ по предмету'!D8","v":"Алексеевич"},{"$f":"'[4]Протокол ШЭ ВОШ по предмету'!H8","v":9},{"$f":"'[4]Протокол ШЭ ВОШ по предмету'!I8","v":9},{"$f":"'[4]Протокол ШЭ ВОШ по предмету'!J8","v":64},{"$f":"'[4]Протокол ШЭ ВОШ по предмету'!K8","v":105},{"$f":"'[4]Протокол ШЭ ВОШ по предмету'!L8","v":"Участник"},{"$f":"'[4]Протокол ШЭ ВОШ по предмету'!N8","v":"Насырова Фарида Мирсатовна"}]
[8,{"$f":"'[4]Протокол ШЭ ВОШ по предмету'!B9","v":"Корнилова "},{"$f":"'[4]Протокол ШЭ ВОШ по предмету'!C9","v":"Маргарита"},{"$f":"'[4]Протокол ШЭ ВОШ по предмету'!D9","v":"Николаевна"},{"$f":"'[4]Протокол ШЭ ВОШ по предмету'!H9","v":9},{"$f":"'[4]Протокол ШЭ ВОШ по предмету'!I9","v":9},{"$f":"'[4]Протокол ШЭ ВОШ по предмету'!J9","v":58},{"$f":"'[4]Протокол ШЭ ВОШ по предмету'!K9","v":105},{"$f":"'[4]Протокол ШЭ ВОШ по предмету'!L9","v":"Участник"},{"$f":"'[4]Протокол ШЭ ВОШ по предмету'!N9","v":"Насырова Фарида Мирсатовна"}]
[9,{"$f":"'[4]Протокол ШЭ ВОШ по предмету'!B10","v":"Савич"},{"$f":"'[4]Протокол ШЭ ВОШ по предмету'!C10","v":"Вячеслав"},{"$f":"'[4]Протокол ШЭ ВОШ по предмету'!D10","v":"Александрович"},{"$f":"'[4]Протокол ШЭ ВОШ по предмету'!H10","v":9},{"$f":"'[4]Протокол ШЭ ВОШ по предмету'!I10","v":9},{"$f":"'[4]Протокол ШЭ ВОШ по предмету'!J10","v":54},{"$f":"'[4]Протокол ШЭ ВОШ по предмету'!K10","v":105},{"$f":"'[4]Протокол ШЭ ВОШ по предмету'!L10","v":"Участник"},{"$f":"'[4]Протокол ШЭ ВОШ по предмету'!N10","v":"Насырова Фарида Мирсатовна"}]
[10,{"$f":"'[4]Протокол ШЭ ВОШ по предмету'!B11","v":"Смирнов"},{"$f":"'[4]Протокол ШЭ ВОШ по предмету'!C11","v":"Антон"},{"$f":"'[4]Протокол ШЭ ВОШ по предмету'!D11","v":"Александрович"},{"$f":"'[4]Протокол ШЭ ВОШ по предмету'!H11","v":9},{"$f":"'[4]Протокол ШЭ ВОШ по предмету'!I11","v":9},{"$f":"'[4]Протокол ШЭ ВОШ по предмету'!J11","v":46},{"$f":"'[4]Протокол ШЭ ВОШ по предмету'!K11","v":105},{"$f":"'[4]Протокол ШЭ ВОШ по предмету'!L11","v":"Участник"},{"$f":"'[4]Протокол ШЭ ВОШ по предмету'!N11","v":"Насырова Фарида Мирсатовна"}]

{"sheet":"10 класс","index":6,"n_rows":12,"n_cols":10,"rows_kept":12}
["№","Фамилия","Имя","Отчество","Класс обучения","Класс участия","Балл","Максимальный балл","Статус","ФИО учителя"]
[1,{"$f":"'[5]Протокол ШЭ ВОШ по предмету'!B2","v":"Герасимова"},{"$f":"'[5]Протокол ШЭ ВОШ по предмету'!C2","v":"Анастасия"},{"$f":"'[5]Протокол ШЭ ВОШ по предмету'!D2","v":"Евгеньевна"},{"$f":"'[5]Протокол ШЭ ВОШ по предмету'!H2","v":10},{"$f":"'[5]Протокол ШЭ ВОШ по предмету'!I2","v":10},{"$f":"'[5]Протокол ШЭ ВОШ по предмету'!J2","v":90},{"$f":"'[5]Протокол ШЭ ВОШ по предмету'!K2","v":103},{"$f":"'[5]Протокол ШЭ ВОШ по предмету'!L2","v":"Участник"},{"$f":"'[5]Протокол ШЭ ВОШ по предмету'!N2","v":"Насырова Фарида Мирсатовна"}]
[2,{"$f":"'[5]Протокол ШЭ ВОШ по предмету'!B3","v":"Ахметова"},{"$f":"'[5]Протокол ШЭ ВОШ по предмету'!C3","v":"Рената"},{"$f":"'[5]Протокол ШЭ ВОШ по предмету'!D3","v":"Раисовна"},{"$f":"'[5]Протокол ШЭ ВОШ по предмету'!H3","v":10},{"$f":"'[5]Протокол ШЭ ВОШ по предмету'!I3","v":10},{"$f":"'[5]Протокол ШЭ ВОШ по предмету'!J3","v":88},{"$f":"'[5]Протокол ШЭ ВОШ по предмету'!K3","v":103},{"$f":"'[5]Протокол ШЭ ВОШ по предмету'!L3","v":"Участник"},{"$f":"'[5]Протокол ШЭ ВОШ по предмету'!N3","v":"Абуярова Самара Миннефайловна"}]
[3,{"$f":"'[5]Протокол ШЭ ВОШ по предмету'!B4","v":"Безрукова"},{"$f":"'[5]Протокол ШЭ ВОШ по предмету'!C4","v":"Алина"},{"$f":"'[5]Протокол ШЭ ВОШ по предмету'!D4","v":"Евгеньевна"},{"$f":"'[5]Протокол ШЭ ВОШ по предмету'!H4","v":10},{"$f":"'[5]Протокол ШЭ ВОШ по предмету'!I4","v":10},{"$f":"'[5]Протокол ШЭ ВОШ по предмету'!J4","v":79},{"$f":"'[5]Протокол ШЭ ВОШ по предмету'!K4","v":103},{"$f":"'[5]Протокол ШЭ ВОШ по предмету'!L4","v":"Участник"},{"$f":"'[5]Протокол ШЭ ВОШ по предмету'!N4","v":"Насырова Фарида Мирсатовна"}]
[4,{"$f":"'[5]Протокол ШЭ ВОШ по предмету'!B5","v":"Полякова"},{"$f":"'[5]Протокол ШЭ ВОШ по предмету'!C5","v":"Севилия"},{"$f":"'[5]Протокол ШЭ ВОШ по предмету'!D5","v":"Денисовна"},{"$f":"'[5]Протокол ШЭ ВОШ по предмету'!H5","v":10},{"$f":"'[5]Протокол ШЭ ВОШ по предмету'!I5","v":10},{"$f":"'[5]Протокол ШЭ ВОШ по предмету'!J5","v":72},{"$f":"'[5]Протокол ШЭ ВОШ по предмету'!K5","v":103},{"$f":"'[5]Протокол ШЭ ВОШ по предмету'!L5","v":"Участник"},{"$f":"'[5]Протокол ШЭ ВОШ по предмету'!N5","v":"Насырова Фарида Мирсатовна"}]
[5,{"$f":"'[5]Протокол ШЭ ВОШ по предмету'!B6","v":"Абросимова"},{"$f":"'[5]Протокол ШЭ ВОШ по предмету'!C6","v":"Виктория "},{"$f":"'[5]Протокол ШЭ ВОШ по предмету'!D6","v":"Андреевна"},{"$f":"'[5]Протокол ШЭ ВОШ по предмету'!H6","v":10},{"$f":"'[5]Протокол ШЭ ВОШ по предмету'!I6","v":10},{"$f":"'[5]Протокол ШЭ ВОШ по предмету'!J6","v":68},{"$f":"'[5]Протокол ШЭ ВОШ по предмету'!K6","v":103},{"$f":"'[5]Протокол ШЭ ВОШ по предмету'!L6","v":"Участник"},{"$f":"'[5]Протокол ШЭ ВОШ по предмету'!N6","v":"Насырова Фарида Мирсатовна"}]
[6,{"$f":"'[5]Протокол ШЭ ВОШ по предмету'!B7","v":"Багдасарян"},{"$f":"'[5]Протокол ШЭ ВОШ по предмету'!C7","v":"Артём "},{"$f":"'[5]Протокол ШЭ ВОШ по предмету'!D7","v":"Ваноевич"},{"$f":"'[5]Протокол ШЭ ВОШ по предмету'!H7","v":10},{"$f":"'[5]Протокол ШЭ ВОШ по предмету'!I7","v":10},{"$f":"'[5]Протокол ШЭ ВОШ по предмету'!J7","v":65},{"$f":"'[5]Протокол ШЭ ВОШ по предмету'!K7","v":103},{"$f":"'[5]Протокол ШЭ ВОШ по предмету'!L7","v":"Участник"},{"$f":"'[5]Протокол ШЭ ВОШ по предмету'!N7","v":"Насырова Фарида Мирсатовна"}]
[7,{"$f":"'[5]Протокол ШЭ ВОШ по предмету'!B8","v":"Малков"},{"$f":"'[5]Протокол ШЭ ВОШ по предмету'!C8","v":"Данис"},{"$f":"'[5]Протокол ШЭ ВОШ по предмету'!D8","v":"Андреевич"},{"$f":"'[5]Протокол ШЭ ВОШ по предмету'!H8","v":10},{"$f":"'[5]Протокол ШЭ ВОШ по предмету'!I8","v":10},{"$f":"'[5]Протокол ШЭ ВОШ по предмету'!J8","v":54},{"$f":"'[5]Протокол ШЭ ВОШ по предмету'!K8","v":103},{"$f":"'[5]Протокол ШЭ ВОШ по предмету'!L8","v":"Участник"},{"$f":"'[5]Протокол ШЭ ВОШ по предмету'!N8","v":"Насырова Фарида Мирсатовна"}]
[8,{"$f":"'[5]Протокол ШЭ ВОШ по предмету'!B9","v":"Сучкова "},{"$f":"'[5]Протокол ШЭ ВОШ по предмету'!C9","v":"Дарья"},{"$f":"'[5]Протокол ШЭ ВОШ по предмету'!D9","v":"Юрьевна"},{"$f":"'[5]Протокол ШЭ ВОШ по предмету'!H9","v":10},{"$f":"'[5]Протокол ШЭ ВОШ по предмету'!I9","v":10},{"$f":"'[5]Протокол ШЭ ВОШ по предмету'!J9","v":53},{"$f":"'[5]Протокол ШЭ ВОШ по предмету'!K9","v":103},{"$f":"'[5]Протокол ШЭ ВОШ по предмету'!L9","v":"Участник"},{"$f":"'[5]Протокол ШЭ ВОШ по предмету'!N9","v":"Насырова Фарида Мирсатовна"}]
[9,{"$f":"'[5]Протокол ШЭ ВОШ по предмету'!B10","v":"Шагиева"},{"$f":"'[5]Протокол ШЭ ВОШ по предмету'!C10","v":"Эльвина"},{"$f":"'[5]Протокол ШЭ ВОШ по предмету'!D10","v":"Рустемовна"},{"$f":"'[5]Протокол ШЭ ВОШ по предмету'!H10","v":10},{"$f":"'[5]Протокол ШЭ ВОШ по предмету'!I10","v":10},{"$f":"'[5]Протокол ШЭ ВОШ по предмету'!J10","v":47},{"$f":"'[5]Протокол ШЭ ВОШ по предмету'!K10","v":103},{"$f":"'[5]Протокол ШЭ ВОШ по предмету'!L10","v":"Участник"},{"$f":"'[5]Протокол ШЭ ВОШ по предмету'!N10","v":"Насырова Фарида Мирсатовна"}]
[10,{"$f":"'[5]Протокол ШЭ ВОШ по предмету'!B11","v":"Аминова"},{"$f":"'[5]Протокол ШЭ ВОШ по предмету'!C11","v":"Анжелика"},{"$f":"'[5]Протокол ШЭ ВОШ по предмету'!D11","v":"Рамилевна"},{"$f":"'[5]Протокол ШЭ ВОШ по предмету'!H11","v":10},{"$f":"'[5]Протокол ШЭ ВОШ по предмету'!I11","v":10},{"$f":"'[5]Протокол ШЭ ВОШ по предмету'!J11","v":44},{"$f":"'[5]Протокол ШЭ ВОШ по предмету'!K11","v":103},{"$f":"'[5]Протокол ШЭ ВОШ по предмету'!L11","v":"Участник"},{"$f":"'[5]Протокол ШЭ ВОШ по предмету'!N11","v":"Насырова Фарида Мирсатовна"}]
[11,{"$f":"'[5]Протокол ШЭ ВОШ по предмету'!B12","v":"Анисимова"},{"$f":"'[5]Протокол ШЭ ВОШ по предмету'!C12","v":"Ксения"},{"$f":"'[5]Протокол ШЭ ВОШ по предмету'!D12","v":"Игоревна"},{"$f":"'[5]Протокол ШЭ ВОШ по предмету'!H12","v":10},{"$f":"'[5]Протокол ШЭ ВОШ по предмету'!I12","v":10},{"$f":"'[5]Протокол ШЭ ВОШ по предмету'!J12","v":44},{"$f":"'[5]Протокол ШЭ ВОШ по предмету'!K12","v":103},{"$f":"'[5]Протокол ШЭ ВОШ по предмету'!L12","v":"Участник"},{"$f":"'[5]Протокол ШЭ ВОШ по предмету'!N12","v":"Абуярова Самаря Миннефайловна"}]

{"sheet":"11 класс","index":7,"n_rows":23,"n_cols":10,"rows_kept":23}
["№","Фамилия","Имя","Отчество","Класс обучения","Класс участия","Балл","Максимальный балл","Статус","ФИО учителя"]
[1,"Сереброва","Анастасия","Вячеславовна",11,11,102,107,"Победитель","Мифтахова Эльмира Флуровна "]
[2,"Софронова","Елизавета","Эдуардовна",11,11,100,107,"Призер ","Мифтахова Эльмира Флуровна "]
[3,"Фролова","Екатерина","Николаевна",11,11,95,107,"Участник","Мифтахова Эльмира Флуровна "]
[4,"Кузьмин","Андрей","Витальевич",11,11,93,107,"Участник","Мифтахова Эльмира Флуровна "]
[5,"Кручин","Вадим","Дмитриевич",11,11,91,107,"Участник","Мифтахова Эльмира Флуровна "]
[6,"Ибрагимова","Маргарита","Ильгамовна",11,11,90,107,"Участник","Мифтахова Эльмира Флуровна "]
[7,"Гусева","Анастасия","Михайловна",11,11,90,107,"Участник","Мифтахова Эльмира Флуровна "]
[8,"Вохмянин","Ярослав","Сергеевич",11,11,89,107,"Участник","Мифтахова Эльмира Флуровна "]
[9,"Воронина","Елизавета","Игоревна",11,11,89,107,"Участник","Мифтахова Эльмира Флуровна "]
[10,"Борисова","Карина","Витальевна",11,11,89,107,"Участник","Мифтахова Эльмира Флуровна "]
[11,"Абдрахманов ","Вадим","Алексеевич",11,11,88,107,"Участник","Мифтахова Эльмира Флуровна "]
[12,"Павлова","Альбина","Петровна",11,11,88,107,"Участник","Мифтахова Эльмира Флуровна "]
[13,"Гаврилова","Кристина","Олеговна",11,11,87,107,"Участник","Мифтахова Эльмира Флуровна "]
[14,"Усманов","Данис","Анатольевич",11,11,86,107,"Участник","Мифтахова Эльмира Флуровна "]
[15,"Шайхуллина","Эллина","Феликсовна",11,11,85,107,"Участник","Мифтахова Эльмира Флуровна "]
[16,"Струминская","Алена","Дмитриенва",11,11,85,107,"Участник","Мифтахова Эльмира Флуровна "]
[17,"Макарова","Надежда","Геннадьевна",11,11,84,107,"Участник","Мифтахова Эльмира Флуровна "]
[18,"Лазарева","Камилла","Максимовна",11,11,82,107,"Участник","Мифтахова Эльмира Флуровна "]
[19,"Емельянов","Егор","Анатольевич",11,11,80,107,"Участник","Мифтахова Эльмира Флуровна "]
[20,"Филатов","Арслан","Александрович",11,11,80,107,"Участник","Мифтахова Эльмира Флуровна "]
[21,"Минниев","Рамиль","Рустемович",11,11,80,107,"Участник","Мифтахова Эльмира Флуровна "]
[22,"Луканова","Виктория","Игоревна",11,11,80,107,"Участник","Мифтахова Эльмира Флуровна "]